Workbook

Sheet GL Wrap Up (hidden)
C1: General Contractor Name
C2: Street
C3: City State Zip
C4: Phone
C7: Labor Cost per Hour | L7: ** GL Wrap Up
A10: Job: | J10: Contract #:
A12: Company Name: | H12: Prepared by:
A14: Trade: | H14: Rate Effective: | K14: to
A16: Classification: | H16: Union:
A17: (i.e.: Superintendent, journeyman, laborer)
H19: Straight Time | J19: Time & 1/2 | L19: Double Time
A20: A. | B20: BASE
B21: 1 | C21: Base Wage | H21: 0 | J21: =H21*1.5 -> 0 | L21: 0
C22: Shift Differential ( if applicable)
C23: 1st Shift | H23: 0 | J23: 0 | L23: 0
C24: 2nd Shift | H24: 0 | J24: 0 | L24: 0
C25: 3rd Shift | H25: 0 | J25: 0 | L25: 0
A27: B. | B27: VACATION & HOLIDAY
B28: 2 | C28: Vacation & Holiday - Add to Base Wage | J28: =H28 -> 0 | L28: =H28 -> 0
B29: 3 | C29: Subtotal of "A1 + B2" = | H29: =H21+H28 -> 0 | J29: =J21+J28 -> 0 | L29: =L21+L28 -> 0
A31: C. | B31: BENEFITS
B32: 4 | C32: Health & Welfare | J32: =H32 -> 0 | L32: =H32 -> 0
B33: 5 | C33: Pension | J33: 0 | L33: 0
B34: 6 | C34: Apprentice Program | J34: 0 | L34: 0
B35: 7 | C35: Grievance Trust | J35: 0 | L35: 0
B36: 8 | C36: Contract Administration | J36: 0 | L36: 0
B37: 9 | C37: Others (list add'l if applicable) | J37: 0 | L37: 0
B38: 10 | C38: Subtotal of "C" = | H38: =SUM(H32:H37) -> 0 | J38: =SUM(J32:J37) -> 0 | L38: =SUM(L32:L37) -> 0
A40: D. | B40: PAYROLL INSURANCE & TAX
B41: 11 | C41: FICA | F41: 0 | H41: =F41*H29 -> 0 | J41: =F41*J29 -> 0 | L41: =F41*L29 -> 0
B42: 12 | C42: FUI | F42: 0 | H42: =F42*H29 -> 0 | J42: =F42*J29 -> 0 | L42: =F42*L29 -> 0
B43: 13 | C43: SUI | F43: 0 | H43: =F43*H29 -> 0 | J43: =F43*J29 -> 0 | L43: =F43*L29 -> 0
B44: 14 | C44: Modified Business Tax | F44: 0 | H44: =F44*H29 -> 0 | J44: =F44*J29 -> 0 | L44: =F44*L29 -> 0
B45: 15 | C45: Workers Compensation | F45: 0 | H45: =F45*H29 -> 0 | J45: =H45 -> 0 | L45: =H45 -> 0
B46: 16 | C46: General Liability Insurance | F46: 0 | H46: =F46*H29 -> 0 | J46: =H46 -> 0 | L46: =H46 -> 0
B47: 17 | C47: Subtotal "D" = | H47: =SUM(H41:H46) -> 0 | J47: =SUM(J41:J46) -> 0 | L47: =SUM(L41:L46) -> 0
A49: E. | B49: **GL Wrap-Up Program Deduction **Deduct General Liability Ins.
B50: 18 | C50: Total D16 | H50: =SUM(H46)*-1 -> 0 | J50: =SUM(J46)*-1 -> 0 | L50: =SUM(L46)*-1 -> 0
A52: F. | B52: OVERHEAD & PROFIT
E53: **DO NOT INCLUDE. To be calculated at end of Change Order Summary.
A56: G. | B56: Equipment Rates
B57: 19 | C57: List as applicable | H57: 0 | J57: 0 | L57: 0
A60: H | B60: Total Billing Rate | H60: =H57+H53+H47+H38+H29+H50 -> 0 | J60: =J57+J53+J47+J38+J29+J50 -> 0 | L60: =L57+L53+L47+L38+L29+L50 -> 0

Sheet OCIP (hidden)
C1: =+'GL Wrap Up'!C1:K1 -> General Contractor Name
C2: =+'GL Wrap Up'!C2:K2 -> Street
C3: =+'GL Wrap Up'!C3:K3 -> City State Zip
C4: =+'GL Wrap Up'!C4:K4 -> Phone
C7: Labor Cost per Hour | L7: **OCIP
A10: Job: | J10: Contract #:
A12: Company Name: | H12: Prepared by:
A14: Trade: | H14: Rate Effective: | K14: to
A16: Classification: | H16: Union:
A17: (i.e.: Superintendent, journeyman, laborer)
H19: Straight Time | J19: Time & 1/2 | L19: Double Time
A20: A. | B20: BASE
B21: 1 | C21: Base Wage | H21: 0 | J21: =H21*1.5 -> 0 | L21: =H21*2 -> 0
C22: Shift Differential ( if applicable)
C23: 1st Shift | H23: 0 | J23: 0 | L23: 0
C24: 2nd Shift | H24: 0 | J24: 0 | L24: 0
C25: 3rd Shift | H25: 0 | J25: 0 | L25: 0
A27: B. | B27: VACATION & HOLIDAY
B28: 2 | C28: Vacation & Holiday - Add to Base Wage | J28: =H28 -> 0 | L28: =H28 -> 0
B29: 3 | C29: Subtotal of "A1 + B2" = | H29: =H21+H28 -> 0 | J29: =J21+J28 -> 0 | L29: =L21+L28 -> 0
A31: C. | B31: BENEFITS
B32: 4 | C32: Health & Welfare | J32: =H32 -> 0 | L32: =H32 -> 0
B33: 5 | C33: Pension | J33: 0 | L33: 0
B34: 6 | C34: Apprentice Program | J34: 0 | L34: 0
B35: 7 | C35: Grievance Trust | J35: 0 | L35: 0
B36: 8 | C36: Contract Administration | J36: 0 | L36: 0
B37: 9 | C37: Others (list add'l if applicable) | J37: 0 | L37: 0
B38: 10 | C38: Subtotal of "C" = | H38: =SUM(H32:H37) -> 0 | J38: =SUM(J32:J37) -> 0 | L38: =SUM(L32:L37) -> 0
A40: D. | B40: PAYROLL INSURANCE & TAX
B41: 11 | C41: FICA | F41: 0 | H41: =F41*H29 -> 0 | J41: =F41*J29 -> 0 | L41: =F41*L29 -> 0
B42: 13 | C42: FUI | F42: 0 | H42: =F42*H29 -> 0 | J42: =F42*J29 -> 0 | L42: =F42*L29 -> 0
B43: 14 | C43: SUI | F43: 0 | H43: =F43*H29 -> 0 | J43: =F43*J29 -> 0 | L43: =F43*L29 -> 0
B44: 15 | C44: Modified Business Tax | F44: 0 | H44: =F44*H29 -> 0 | J44: =F44*J29 -> 0 | L44: =H44*L29 -> 0
B45: 16 | C45: Workers Compensation | F45: 0 | H45: =F45*H29 -> 0 | J45: =F45*J29 -> 0 | L45: =F45*L29 -> 0
B46: 17 | C46: General Liability Insurance | F46: 0 | H46: =F46*H29 -> 0 | J46: =F46*J29 -> 0 | L46: =F46*L29 -> 0
B47: 18 | C47: Subtotal "D" = | H47: =SUM(H41:H46) -> 0 | J47: =SUM(J41:J46) -> 0 | L47: =SUM(L41:L46) -> 0
A49: E. | B49: **OCIP Program Deduction **Deduct Workers Compensation & General Liability Ins.
B50: 19 | C50: Total D16+D17 | H50: =SUM(H45:H46)*-1 -> 0 | J50: =SUM(J45:J46)*-1 -> 0 | L50: =SUM(L45:L46)*-1 -> 0
A52: F. | B52: OVERHEAD & PROFIT
B53: 20 | C53: Overhead & Profit | F53: 0 | H53: =(H29+H38+H47+H50)*$F$53 -> 0 | J53: =(J47+J38+J29+J50)*$F$53 -> 0 | L53: =(L47+L38+L29+L50)*$F$53 -> 0
C54: (B3+C10+D18+E19)
A56: G. | B56: Equipment Rates
B57: 21 | C57: List as applicable | H57: 0 | J57: 0 | L57: 0
A60: G. | B60: Total Billing Rate | H60: =H57+H53+H47+H38+H29+H50 -> 0 | J60: =J57+J53+J47+J38+J29+J50 -> 0 | L60: =L57+L53+L47+L38+L29+L50 -> 0

Sheet Technician 1
D1: NAME of General Contractor
D2: Street City | Q2: Number of employees is a guess
D3: Utah | Q3: Bard hires some under-the-table
D4: Phone | Q4: # of Employees
A6: -
D7: Labor Cost per Hour | M7: **Non-Union
P9: Alm | Q9: 3
B10: Job: | K10: Contract #: | P10: Chem | Q10: 3
P11: FE | Q11: 3
B12: Company Name: | E12: Company | I12: Prepared by: | K12: Compliance Division FSS | P12: Mgm | Q12: 2
P13: Office | Q13: 4
B14: Trade: | D14: Division 21 | I14: Rate Effective: | L14: to | P14: Other | Q14: 1
P15: Sprinks | Q15: 4
B16: Classification: | E16: Pipe/Alarm Technician | K16: =IF(K17=FALSE,"Davis-Bacon?","Davis Bacon") -> Davis-Bacon? | P16: Steam | Q16: 3
B17: (i.e.: Technician, Fitter, Lead or Supervisor) | K17: FALSE | Q17: =+SUM(Q8:Q16) -> 23
I19: Straight Time | K19: Time & 1/2 | M19: Double Time | O19: Per Annum | Q19: Per month
B20: A. | C20: BASE | O20: =160*13 -> 2080 | P20: hrs | Q20: =160 -> 160
C21: 1 | D21: Base Wage | F21: 18 | I21: =IF(K17=FALSE,+F21,I67) -> 18 | K21: =I21*1.5 -> 27 | M21: =I21*2 -> 36 | O21: =+I21*$O$20 -> 37440 | Q21: =+I21*$Q$20 -> 2880
D22: Shift Differential ( if applicable)
D23: 1st Shift | I23: 0 | K23: 0 | M23: 0
D24: 2nd Shift | I24: 0 | K24: 0 | M24: 0
D25: 3rd Shift | I25: 0 | K25: 0 | M25: 0
B27: B. | C27: VACATION & HOLIDAY
C28: 2 | D28: Vacation & Holiday - Add to Base Wage | G28: 0.05 | I28: =+I21*G28 -> 0.9 | K28: =I28 -> 0.9 | M28: =I28 -> 0.9 | O28: =+I28*$O$20 -> 1872 | Q28: =+I28*$Q$20 -> 144
C29: =+C28+1 -> 3 | D29: Subtotal of "A + B" = | I29: =I21+I28 -> 18.9 | K29: =K21+K28 -> 27.9 | M29: =M21+M28 -> 36.9 | O29: =+I29*$O$20 -> 39312 | Q29: =+I29*$Q$20 -> 3024
B31: C. | C31: BENEFITS
C32: =+C29+1 -> 4 | D32: Health & Welfare | I32: 1.05 | K32: =I32 -> 1.05 | M32: =I32 -> 1.05 | O32: =+I32*$O$20 -> 2184 | Q32: =+I32*$Q$20 -> 168
C33: =+C32+1 -> 5 | D33: Sick | K33: =I33 -> 0 | M33: =I33 -> 0
C34: =+C33+1 -> 6
C35: =+C34+1 -> 7 | D35: Others (list add'l if applicable)
C36: =+C35+1 -> 8 | D36: Subtotal of "C" = | I36: =SUM(I32:I33) -> 1.05 | K36: =SUM(K32:K33) -> 1.05 | M36: =SUM(M32:M33) -> 1.05 | O36: =+I36*$O$20 -> 2184 | Q36: =+I36*$Q$20 -> 168
B38: D. | C38: PAYROLL INSURANCE & TAX
C39: =+C36+1 -> 9 | D39: FICA | G39: 0.0765 | I39: =G39*I29 -> 1.44585 | K39: =G39*K29 -> 2.13435 | M39: =G39*M29 -> 2.82285 | O39: =+I39*$O$20 -> 3007.368 | Q39: =+I39*$Q$20 -> 231.336
C40: =+C39+1 -> 10 | D40: FUI | G40: 0.006 | I40: =G40*I29 -> 0.1134 | K40: =G40*K29 -> 0.1674 | M40: =G40*M29 -> 0.2214 | O40: 235.872 | Q40: 18.144
C41: =+C40+1 -> 11 | D41: SUI | G41: 0.006 | I41: =G41*I29 -> 0.1134 | K41: =G41*K29 -> 0.1674 | M41: =G41*M29 -> 0.2214 | O41: 235.872 | Q41: 18.144
C42: =+C41+1 -> 12 | D42: Workers Compensation | G42: 0.04 | I42: =G42*I29 -> 0.756 | K42: =G42*K29 -> 1.116 | M42: =G42*M29 -> 1.476 | O42: 1572.48 | Q42: 120.96
C43: =+C42+1 -> 13 | D43: General Liability Insurance | G43: 0.075 | I43: =G43*I29 -> 1.4175 | K43: =G43*K29 -> 2.0925 | M43: =G43*M29 -> 2.7675 | O43: 2948.4 | Q43: 226.8
C44: =+C43+1 -> 14 | D44: Subtotal "D" = | I44: =SUM(I39:I43) -> 3.84615 | K44: =SUM(K39:K43) -> 5.67765 | M44: =SUM(M39:M43) -> 7.50915 | O44: 7999.992 | Q44: 615.384
B46: E. | C46: OVERHEAD & PROFIT
C47: =+C44+1 -> 15 | D47: Overhead & Profit | G47: 0 | I47: =(+I29+I36+I44)*$G$47 -> 0 | K47: =(+K29+K36+K44)*$G$47 -> 0 | M47: =(+M29+M36+M44)*$G$47 -> 0 | O47: =+I47*$O$20 -> 0
C48: =+C47+1 -> 16 | D48: (B3+C8+D14) | G48: **DO NOT INCLUDE. To be calculated at end of Change Order Summary.
C49: =+C48+1 -> 17
G50: Monthly | Q50: Per Month
B51: F. | C51: Equipment Rates | G51: per employee | I51: Per Hour | O51: =+O19 -> Per Annum | Q51: (160 hrs)
C52: =+C49+1 -> 18 | D52: Cell Phone | G52: 80 | I52: =+G52/$Q$20 -> 0.5 | K52: =+I52 -> 0.5 | M52: =+K52 -> 0.5 | O52: =+I52*$O$20 -> 1040 | Q52: =+G52 -> 80
C53: =+C52+1 -> 19 | D53: Inet Offices | G53: =+(65+N("1000E")+65+N("2300E"))/Q17 -> 5.652173913 | I53: 0.03532608696 | K53: 0.03532608696 | M53: 0.03532608696 | O53: 73.47826087 | Q53: 5.652173913
C54: 20 | D54: Licences & Training | G54: 11 | I54: 0.06875 | K54: 0.06875 | M54: 0.06875 | O54: 143 | Q54: 11
C55: 21 | D55: Tools | G55: 15 | I55: 0.09375 | K55: 0.09375 | M55: 0.09375 | O55: 195 | Q55: 15
C56: 22 | D56: Uniform | G56: 25 | I56: 0.15625 | K56: 0.15625 | M56: 0.15625 | O56: 325 | Q56: 25
C57: 23 | D57: Vehicle | G57: 600 | I57: 3.75 | K57: 3.75 | M57: 3.75 | O57: 7800 | Q57: 600
C58: 24 | D58: Other | G58: 0 | I58: 0 | K58: 0 | M58: 0 | O58: 0 | Q58: 0
C59: 25 | D59: Subtotal "F" = | I59: =SUM(I52:I58) -> 4.604076087 | K59: =SUM(K52:K58) -> 4.604076087 | M59: =SUM(M52:M58) -> 4.604076087 | O59: 9576.478261 | Q59: =SUM(Q52:Q58) -> 736.6521739
B61: G. | C61: =+C59+1 -> 26 | D61: Bonus | G61: =(+I29+I36+I44+I47+I59)*0.5% -> 0.1420011304 | O61: =+G61*$O$20 -> 295.3623513
B63: H. | C63: Total Billing Rate | I63: =I29+I36+I44+I47+I59+G61 -> 28.54222722 | K63: =K59+K47+K44+K36+K29+G61 -> 39.37372722 | M63: =M59+M47+M44+M36+M29+G61 -> 50.20522722
O65: Hours in a year | Q65: Hours in a month
B66: I. | C66: Davis Bacon | E66: (per UT170106 2017-10-27) | I66: Rate | K66: Fringes | O66: 2080 | Q66: 160
C67: =+C61+1 -> 27 | D67: SPRINKLER FITTER (Fire Sprinklers) | I67: 33.14 | K67: 15.84
C68: 28 | D68: LV Alarm Techs | I68: 23.91 | K68: =I68+(1.5%*I68)+10.07 -> 34.33865 | O68: Calcs | Q68: =10/160 -> 0.0625
I69: MULTIPLIER is:
I70: =+I63/I21 -> 1.58567929
C73: Rev: 2018-12-31 | E73: 19:30:00
A74: - | B74: - | C74: - | D74: - | E74: - | F74: - | G74: - | H74: - | I74: - | J74: - | K74: - | L74: - | M74: - | N74: -
F77: Note: Mike Lee UT, has a Repeal of The Davis Bacon Act in front of the Govt..
G78: sponsers are: T Cruz, J Coryn

Sheet Pipe Fitter
D1: =+'Technician 1'!D1:L1 -> NAME of General Contractor
D2: =+'Technician 1'!D2:L2 -> Street City | Q2: =+'Technician 1'!Q2 -> Number of employees is a guess
D3: =+'Technician 1'!D3:L3 -> Utah | Q3: =+'Technician 1'!Q3 -> Bard hires some under-the-table
D4: =+'Technician 1'!D4:L4 -> Phone | Q4: =+'Technician 1'!Q4 -> # of Employees
A6: -
D7: =+'Technician 1'!D7:L7 -> Labor Cost per Hour | M7: =+'Technician 1'!M7 -> **Non-Union
P9: =+'Technician 1'!P9 -> Alm | Q9: =+'Technician 1'!Q9 -> 3
B10: Job: | D10: =+'Technician 1'!D10 -> 0 | K10: Contract #: | P10: =+'Technician 1'!P10 -> Chem | Q10: =+'Technician 1'!Q10 -> 3
P11: =+'Technician 1'!P11 -> FE | Q11: =+'Technician 1'!Q11 -> 3
B12: Company Name: | E12: =+'Technician 1'!E12 -> Company | I12: Prepared by: | K12: =+'Technician 1'!K12 -> Compliance Division FSS | P12: =+'Technician 1'!P12 -> Mgm | Q12: =+'Technician 1'!Q12 -> 2
P13: =+'Technician 1'!P13 -> Office | Q13: =+'Technician 1'!Q13 -> 4
B14: =+'Technician 1'!B14 -> Trade: | D14: Division 21 | I14: Rate Effective: | L14: to | P14: =+'Technician 1'!P14 -> Other | Q14: =+'Technician 1'!Q14 -> 1
P15: =+'Technician 1'!P15 -> Sprinks | Q15: =+'Technician 1'!Q15 -> 4
B16: Classification: | E16: Alarm Technician/Sprinkler Fitter | K16: =IF(K17=FALSE,"Davis-Bacon?","Davis Bacon") -> Davis-Bacon? | P16: =+'Technician 1'!P16 -> Steam | Q16: =+'Technician 1'!Q16 -> 3
B17: =+'Technician 1'!B17 -> (i.e.: Technician, Fitter, Lead or Supervisor) | K17: FALSE | Q17: =+'Technician 1'!Q17 -> 23
I19: Straight Time | K19: Time & 1/2 | M19: Double Time | O19: Per Annum | Q19: Per month
B20: A. | C20: BASE | O20: =160*13 -> 2080 | P20: hrs | Q20: =160 -> 160
C21: 1 | D21: Base Wage | F21: 20 | I21: =IF(K17=FALSE,+F21,I67) -> 20 | K21: =I21*1.5 -> 30 | M21: =I21*2 -> 40 | O21: =+I21*$O$20 -> 41600 | Q21: =+I21*$Q$20 -> 3200
D22: Shift Differential ( if applicable)
D23: 1st Shift | I23: 0 | K23: 0 | M23: 0
D24: 2nd Shift | I24: 0 | K24: 0 | M24: 0
D25: 3rd Shift | I25: 0 | K25: 0 | M25: 0
B27: B. | C27: VACATION & HOLIDAY
C28: =+C21+1 -> 2 | D28: Vacation & Holiday - Add to Base Wage | G28: =+'Technician 1'!G28 -> 0.05 | I28: =+I21*G28 -> 1 | K28: =I28 -> 1 | M28: =I28 -> 1 | O28: =+I28*$O$20 -> 2080 | Q28: =+I28*$Q$20 -> 160
C29: =+C28+1 -> 3 | D29: Subtotal of "A + B" = | I29: =I21+I28 -> 21 | K29: =K21+K28 -> 31 | M29: =M21+M28 -> 41 | O29: =+I29*$O$20 -> 43680 | Q29: =+I29*$Q$20 -> 3360
B31: C. | C31: BENEFITS
C32: =+C29+1 -> 4 | D32: Health & Welfare | I32: 1.05 | K32: =I32 -> 1.05 | M32: =I32 -> 1.05
C33: =+C32+1 -> 5 | D33: Sick
C34: =+C33+1 -> 6
C35: =+C34+1 -> 7 | D35: Others (list add'l if applicable) | K35: =I35 -> 0 | M35: =I35 -> 0
C36: =+C35+1 -> 8 | D36: Subtotal of "C" = | I36: =SUM(I32:I35) -> 1.05 | K36: =SUM(K32:K35) -> 1.05 | M36: =SUM(M32:M35) -> 1.05 | O36: =+I36*$O$20 -> 2184 | Q36: =+I36*$Q$20 -> 168
B38: D. | C38: PAYROLL INSURANCE & TAX
C39: =+C36+1 -> 9 | D39: FICA | G39: =+'Technician 1'!G39 -> 0.0765 | I39: =G39*I29 -> 1.6065 | K39: =G39*K29 -> 2.3715 | M39: =G39*M29 -> 3.1365 | O39: =+I39*$O$20 -> 3341.52 | Q39: =+I39*$Q$20 -> 257.04
C40: =+C39+1 -> 10 | D40: FUI | G40: =+'Technician 1'!G40 -> 0.006 | I40: =G40*I29 -> 0.126 | K40: =G40*K29 -> 0.186 | M40: =G40*M29 -> 0.246 | O40: 262.08 | Q40: 20.16
C41: =+C40+1 -> 11 | D41: SUI | G41: =+'Technician 1'!G41 -> 0.006 | I41: =G41*I29 -> 0.126 | K41: =G41*K29 -> 0.186 | M41: =G41*M29 -> 0.246 | O41: 262.08 | Q41: 20.16
C42: =+C41+1 -> 12 | D42: Workers Compensation | G42: =+'Technician 1'!G42 -> 0.04 | I42: =G42*I29 -> 0.84 | K42: =G42*K29 -> 1.24 | M42: =G42*M29 -> 1.64 | O42: 1747.2 | Q42: 134.4
C43: =+C42+1 -> 13 | D43: General Liability Insurance | G43: =+'Technician 1'!G43 -> 0.075 | I43: =G43*I29 -> 1.575 | K43: =G43*K29 -> 2.325 | M43: =G43*M29 -> 3.075 | O43: 3276 | Q43: 252
C44: =+C43+1 -> 14 | D44: Subtotal "D" = | I44: =SUM(I39:I43) -> 4.2735 | K44: =SUM(K39:K43) -> 6.3085 | M44: =SUM(M39:M43) -> 8.3435 | O44: 8888.88 | Q44: 683.76
B46: E. | C46: OVERHEAD & PROFIT
C47: =+C44+1 -> 15 | D47: Overhead & Profit | G47: =+'Technician 1'!G47 -> 0 | I47: =(+I29+I36+I44)*$G$47 -> 0 | K47: =(+K29+K36+K44)*$G$47 -> 0 | M47: =(+M29+M36+M44)*$G$47 -> 0
C48: =+C47+1 -> 16 | D48: (B3+C8+D14) | G48: **DO NOT INCLUDE. To be calculated at end of Change Order Summary.
C49: =+C48+1 -> 17
G50: Monthly | Q50: Per Month
B51: F. | C51: Equipment Rates | G51: per employee | I51: Per Hour | O51: =+O19 -> Per Annum | Q51: (160 hrs)
C52: =+C49+1 -> 18 | D52: Cell Phone | G52: 80 | I52: =+G52/$Q$20 -> 0.5 | K52: =+I52 -> 0.5 | M52: =+K52 -> 0.5 | O52: =+I52*$O$20 -> 1040 | Q52: =+G52 -> 80
C53: =+C52+1 -> 19 | D53: Inet Offices | G53: =+(60+N("1000E")+60+N("2300E"))/Q17 -> 5.217391304 | I53: =+G53/$Q$20 -> 0.03260869565 | K53: 0.03260869565 | M53: 0.03260869565 | O53: 67.82608696 | Q53: 5.217391304
C54: 20 | D54: Licences & Training | G54: 10 | I54: 0.0625 | K54: 0.0625 | M54: 0.0625 | O54: 130 | Q54: 10
C55: 21 | D55: Tools | G55: 20 | I55: 0.125 | K55: 0.125 | M55: 0.125 | O55: 260 | Q55: 20
C56: 22 | D56: Uniform | G56: 20 | I56: 0.125 | K56: 0.125 | M56: 0.125 | O56: 260 | Q56: 20
C57: 23 | D57: Vehicle | G57: 600 | I57: 3.75 | K57: 3.75 | M57: 3.75 | O57: 7800 | Q57: 600
C58: 24 | D58: Other | G58: 0 | I58: =+IF(G58>0,G58/$Q$20,0) -> 0 | K58: 0 | M58: 0 | O58: 0 | Q58: 0
C59: 25 | D59: Subtotal "F" = | I59: =SUM(I52:I58) -> 4.595108696 | K59: =SUM(K52:K58) -> 4.595108696 | M59: =SUM(M52:M58) -> 4.595108696 | O59: 9557.826087 | Q59: =SUM(Q52:Q58) -> 735.2173913
B61: G. | C61: =+C59+1 -> 26 | D61: Bonus | G61: =(I59+I47+I44+I36+I29)*0.6% -> 0.1855116522 | O61: =+G61*$O$20 -> 385.8642365
B63: H. | C63: Total Billing Rate | I63: =I29+I36+I44+I47+I59+G61 -> 31.10412035 | K63: =K59+K47+K44+K36+K29+G61 -> 43.13912035 | M63: =M59+M47+M44+M36+M29+G61 -> 55.17412035
O65: Hours in a year | Q65: Hours in a month
B66: I. | C66: =+'Technician 1'!C66 -> Davis Bacon | E66: =+'Technician 1'!E66 -> (per UT170106 2017-10-27) | I66: Rate | K66: Fringes | O66: 2080 | Q66: 160
C67: =+C61+1 -> 27 | D67: SPRINKLER FITTER LEAD (Fire Sprinklers) | I67: 33.14 | K67: 15.84
C68: =+'Technician 1'!C68 -> 28 | D68: =+'Technician 1'!D68 -> LV Alarm Techs | I68: =+'Technician 1'!I68 -> 23.91 | K68: =+'Technician 1'!K68 -> 34.33865 | O68: Calcs | Q68: =10/160 -> 0.0625
I69: MULTIPLIER is:
I70: =+I63/I21 -> 1.555206017
C73: =+'Technician 1'!C73 -> Rev: 2018-12-31 | E73: =+'Technician 1'!E73 -> 19:30:00
A74: - | B74: - | C74: - | D74: - | E74: - | F74: - | G74: - | H74: - | I74: - | J74: - | K74: - | L74: - | M74: - | N74: -

Sheet Lead Fitter
D1: =+'Pipe Fitter'!D1:L1 -> NAME of General Contractor
D2: =+'Pipe Fitter'!D2:L2 -> Street City | Q2: =+'Pipe Fitter'!Q2 -> Number of employees is a guess
D3: =+'Pipe Fitter'!D3:L3 -> Utah | Q3: =+'Pipe Fitter'!Q3 -> Bard hires some under-the-table
D4: =+'Pipe Fitter'!D4:L4 -> Phone | Q4: =+'Pipe Fitter'!Q4 -> # of Employees
A6: -
D7: =+'Pipe Fitter'!D7:L7 -> Labor Cost per Hour | M7: =+'Pipe Fitter'!M7 -> **Non-Union
B10: Job: | D10: =+'Technician 1'!D10 -> 0 | K10: Contract #:
B12: Company Name: | E12: =+'Technician 1'!E12 -> Company | I12: Prepared by: | K12: =+'Technician 1'!K12 -> Compliance Division FSS
B14: Trade: | D14: Division 21 | I14: Rate Effective: | L14: to
B16: Classification: | E16: Supervisory Alarm/Wet Systems | K16: =IF(K17=FALSE,"Davis-Bacon?","Davis Bacon") -> Davis-Bacon?
B17: =+'Pipe Fitter'!B17 -> (i.e.: Technician, Fitter, Lead or Supervisor) | K17: FALSE | Q17: =+'Pipe Fitter'!Q17 -> 23
I19: Straight Time | K19: Time & 1/2 | M19: Double Time | O19: Per Annum | Q19: Per month
B20: A. | C20: BASE | O20: =160*13 -> 2080 | P20: hrs | Q20: =160 -> 160
C21: 1 | D21: Base Wage | F21: 27.5 | I21: =IF(K17=FALSE,+F21,I67) -> 27.5 | K21: =I21*1.5 -> 41.25 | M21: =I21*2 -> 55 | O21: =+I21*$O$20 -> 57200 | Q21: =+I21*$Q$20 -> 4400
D22: Shift Differential ( if applicable)
D23: 1st Shift | I23: 0 | K23: 0 | M23: 0
D24: 2nd Shift | I24: 0 | K24: 0 | M24: 0
D25: 3rd Shift | I25: 0 | K25: 0 | M25: 0
B27: B. | C27: VACATION & HOLIDAY
C28: 2 | D28: Vacation & Holiday - Add to Base Wage | G28: =+'Pipe Fitter'!G28 -> 0.05 | I28: =+I21*G28 -> 1.375 | K28: =I28 -> 1.375 | M28: =I28 -> 1.375 | O28: =+I28*$O$20 -> 2860 | Q28: =+I28*$Q$20 -> 220
C29: 3 | D29: Subtotal of "A + B" = | I29: =I21+I28 -> 28.875 | K29: =K21+K28 -> 42.625 | M29: =M21+M28 -> 56.375 | O29: =+I29*$O$20 -> 60060 | Q29: =+I29*$Q$20 -> 4620
B31: C. | C31: BENEFITS
C32: =+C29+1 -> 4 | D32: Health & Welfare | I32: 1.05 | K32: =I32 -> 1.05 | M32: =I32 -> 1.05
C33: =+C32+1 -> 5 | D33: Sick
C34: =+C33+1 -> 6
C35: =+C34+1 -> 7 | D35: Others (list add'l if applicable) | K35: =I35 -> 0 | M35: =I35 -> 0
C36: =+C35+1 -> 8 | D36: Subtotal of "C" = | I36: =SUM(I32:I35) -> 1.05 | K36: =SUM(K32:K35) -> 1.05 | M36: =SUM(M32:M35) -> 1.05 | O36: =+I36*$O$20 -> 2184 | Q36: =+I36*$Q$20 -> 168
B38: D. | C38: PAYROLL INSURANCE & TAX
C39: =+C36+1 -> 9 | D39: FICA | G39: =+'Technician 1'!G39 -> 0.0765 | I39: =G39*I29 -> 2.2089375 | K39: =G39*K29 -> 3.2608125 | M39: =G39*M29 -> 4.3126875 | O39: =+I39*$O$20 -> 4594.59 | Q39: =+I39*$Q$20 -> 353.43
C40: =+C39+1 -> 10 | D40: FUI | G40: =+'Technician 1'!G40 -> 0.006 | I40: =G40*I29 -> 0.17325 | K40: =G40*K29 -> 0.25575 | M40: =G40*M29 -> 0.33825 | O40: 360.36 | Q40: 27.72
C41: =+C40+1 -> 11 | D41: SUI | G41: =+'Technician 1'!G41 -> 0.006 | I41: =G41*I29 -> 0.17325 | K41: =G41*K29 -> 0.25575 | M41: =G41*M29 -> 0.33825 | O41: 360.36 | Q41: 27.72
C42: =+C41+1 -> 12 | D42: Workers Compensation | G42: =+'Technician 1'!G42 -> 0.04 | I42: =G42*I29 -> 1.155 | K42: =G42*K29 -> 1.705 | M42: =G42*M29 -> 2.255 | O42: 2402.4 | Q42: 184.8
C43: =+C42+1 -> 13 | D43: General Liability Insurance | G43: =+'Technician 1'!G43 -> 0.075 | I43: =G43*I29 -> 2.165625 | K43: =G43*K29 -> 3.196875 | M43: =G43*M29 -> 4.228125 | O43: 4504.5 | Q43: 346.5
C44: =+C43+1 -> 14 | D44: Subtotal "D" = | I44: =SUM(I39:I43) -> 5.8760625 | K44: =SUM(K39:K43) -> 8.6741875 | M44: =SUM(M39:M43) -> 11.4723125 | O44: 12222.21 | Q44: 940.17
B46: E. | C46: OVERHEAD & PROFIT
C47: =+C44+1 -> 15 | D47: Overhead & Profit | G47: =+'Technician 1'!G47 -> 0 | I47: =(+I29+I36+I44)*$G$47 -> 0 | K47: =(+K29+K36+K44)*$G$47 -> 0 | M47: =(+M29+M36+M44)*$G$47 -> 0
C48: =+C47+1 -> 16 | D48: (B3+C8+D14) | G48: **DO NOT INCLUDE. To be calculated at end of Change Order Summary.
C49: =+C48+1 -> 17
G50: Monthly | Q50: Per Month
B51: F. | C51: Equipment Rates | G51: per employee | I51: Per Hour | O51: =+O19 -> Per Annum | Q51: (160 hrs)
C52: =C49+1 -> 18 | D52: Cell Phone | G52: 85 | I52: =+G52/$Q$20 -> 0.53125 | K52: =+I52 -> 0.53125 | M52: =+K52 -> 0.53125 | O52: =+I52*$O$20 -> 1105 | Q52: =+G52 -> 85
C53: =+C52+1 -> 19 | D53: Inet Offices | G53: =+(60+N("1000E")+60+N("2300E"))/Q17 -> 5.217391304 | I53: =+G53/$Q$20 -> 0.03260869565 | K53: 0.03260869565 | M53: 0.03260869565 | O53: 67.82608696 | Q53: 5.217391304
C54: 20 | D54: Licences & Training | G54: 15 | I54: 0.09375 | K54: 0.09375 | M54: 0.09375 | O54: 195 | Q54: 15
C55: 21 | D55: Tools | G55: 20 | I55: 0.125 | K55: 0.125 | M55: 0.125 | O55: 260 | Q55: 20
C56: 22 | D56: Uniform | G56: 20 | I56: 0.125 | K56: 0.125 | M56: 0.125 | O56: 260 | Q56: 20
C57: 23 | D57: Vehicle | G57: 600 | I57: 3.75 | K57: 3.75 | M57: 3.75 | O57: 7800 | Q57: 600
C58: 24 | D58: Other | G58: 0 | I58: =+IF(G58>0,G58/$Q$20,0) -> 0 | K58: 0 | M58: 0 | O58: 0 | Q58: 0
C59: 25 | D59: Subtotal "F" = | I59: =SUM(I52:I58) -> 4.657608696 | K59: =SUM(K52:K58) -> 4.657608696 | M59: =SUM(M52:M58) -> 4.657608696 | O59: 9687.826087 | Q59: =SUM(Q52:Q58) -> 745.2173913
B61: G. | C61: =+C59+1 -> 26 | D61: Bonus | G61: =(I59+I47+I44+I36+I29)*0.6% -> 0.2427520272 | O61: =+G61*$O$20 -> 504.9242165
B63: H. | C63: Total Billing Rate | I63: =I29+I36+I44+I47+I59+G61 -> 40.70142322 | K63: =K59+K47+K44+K36+K29+G61 -> 57.24954822 | M63: =M59+M47+M44+M36+M29+G61 -> 73.79767322
O65: Hours in a year | Q65: Hours in a month
B66: I. | C66: Davis Bacon | I66: Rate | K66: Fringes | O66: 2080 | Q66: 160
C67: =+C61+1 -> 27 | D67: SPRINKLER FITTER LEAD (Fire Sprinklers) | I67: 33.14 | K67: 15.84
O68: Calcs | Q68: =10/160 -> 0.0625
I69: MULTIPLIER is:
I70: =+I63/I21 -> 1.480051754
C73: =+'Technician 1'!C73 -> Rev: 2018-12-31 | E73: =+'Technician 1'!E73 -> 19:30:00
A74: - | B74: - | C74: - | D74: - | E74: - | F74: - | G74: - | H74: - | I74: - | J74: - | K74: - | L74: - | M74: - | N74: -

Sheet Inspectors
D1: =+'Lead Fitter'!D1:L1 -> NAME of General Contractor
D2: =+'Lead Fitter'!D2:L2 -> Street City | Q2: =+'Lead Fitter'!Q2 -> Number of employees is a guess
D3: =+'Lead Fitter'!D3:L3 -> Utah | Q3: =+'Lead Fitter'!Q3 -> Bard hires some under-the-table
D4: =+'Lead Fitter'!D4:L4 -> Phone | Q4: =+'Lead Fitter'!Q4 -> # of Employees
A6: -
D7: =+'Lead Fitter'!D7:L7 -> Labor Cost per Hour | M7: =+'Lead Fitter'!M7 -> **Non-Union
B10: Job: | D10: =+'Technician 1'!D10 -> 0 | K10: Contract #:
B12: Company Name: | E12: =+'Lead Fitter'!E12 -> Company | I12: Prepared by: | K12: =+'Technician 1'!K12 -> Compliance Division FSS
B14: Trade: | D14: Division 21 | I14: Rate Effective: | L14: to
B16: Classification: | E16: Inspector Wet Systems | K16: =IF(K17=FALSE,"Davis-Bacon?","Davis Bacon") -> Davis-Bacon?
B17: =+'Lead Fitter'!B17 -> (i.e.: Technician, Fitter, Lead or Supervisor) | K17: FALSE | Q17: =+'Lead Fitter'!Q17 -> 23
I19: Straight Time | K19: Time & 1/2 | M19: Double Time | O19: Per Annum | Q19: Per month
B20: A. | C20: BASE | O20: =160*13 -> 2080 | P20: hrs | Q20: =160 -> 160
C21: 1 | D21: Base Wage | F21: 30.77 | I21: =IF(K17=FALSE,+F21,I67) -> 30.77 | K21: =I21*1.5 -> 46.155 | M21: =I21*2 -> 61.54 | O21: =+I21*$O$20 -> 64001.6 | Q21: =+I21*$Q$20 -> 4923.2
D22: Shift Differential ( if applicable)
D23: 1st Shift | I23: 0 | K23: 0 | M23: 0
D24: 2nd Shift | I24: 0 | K24: 0 | M24: 0
D25: 3rd Shift | I25: 0 | K25: 0 | M25: 0
B27: B. | C27: VACATION & HOLIDAY
C28: 2 | D28: Vacation & Holiday - Add to Base Wage | G28: =+'Lead Fitter'!G28+0.02 -> 0.07 | I28: =+G28*I21 -> 2.1539 | K28: =I28 -> 2.1539 | M28: =I28 -> 2.1539 | O28: =+I28*$O$20 -> 4480.112 | Q28: =+I28*$Q$20 -> 344.624
C29: 3 | D29: Subtotal of "A + B" = | I29: =I21+I28 -> 32.9239 | K29: =K21+K28 -> 48.3089 | M29: =M21+M28 -> 63.6939 | O29: =+I29*$O$20 -> 68481.712 | Q29: =+I29*$Q$20 -> 5267.824
B31: C. | C31: BENEFITS
C32: =+C29+1 -> 4 | D32: Health & Welfare | I32: 2 | K32: =I32 -> 2 | M32: =I32 -> 2
C33: =+C32+1 -> 5 | D33: Sick
C34: =+C33+1 -> 6
C35: =+C34+1 -> 7 | D35: Others (list add'l if applicable) | K35: =I35 -> 0 | M35: =I35 -> 0
C36: =+C35+1 -> 8 | D36: Subtotal of "C" = | I36: =SUM(I32:I35) -> 2 | K36: =SUM(K32:K35) -> 2 | M36: =SUM(M32:M35) -> 2 | O36: =+I36*$O$20 -> 4160 | Q36: =+I36*$Q$20 -> 320
B38: D. | C38: PAYROLL INSURANCE & TAX
C39: =+C36+1 -> 9 | D39: FICA | G39: =+'Technician 1'!G39 -> 0.0765 | I39: =G39*I29 -> 2.51867835 | K39: =G39*K29 -> 3.69563085 | M39: =G39*M29 -> 4.87258335 | O39: =+I39*$O$20 -> 5238.850968 | Q39: =+I39*$Q$20 -> 402.988536
C40: =+C39+1 -> 10 | D40: FUI | G40: =+'Technician 1'!G40 -> 0.006 | I40: =G40*I29 -> 0.1975434 | K40: =G40*K29 -> 0.2898534 | M40: =G40*M29 -> 0.3821634 | O40: 410.890272 | Q40: 31.606944
C41: =+C40+1 -> 11 | D41: SUI | G41: =+'Technician 1'!G41 -> 0.006 | I41: =G41*I29 -> 0.1975434 | K41: =G41*K29 -> 0.2898534 | M41: =G41*M29 -> 0.3821634 | O41: 410.890272 | Q41: 31.606944
C42: =+C41+1 -> 12 | D42: Workers Compensation | G42: =+'Technician 1'!G42 -> 0.04 | I42: =G42*I29 -> 1.316956 | K42: =G42*K29 -> 1.932356 | M42: =G42*M29 -> 2.547756 | O42: 2739.26848 | Q42: 210.71296
C43: =+C42+1 -> 13 | D43: General Liability Insurance | G43: =+'Technician 1'!G43 -> 0.075 | I43: =G43*I29 -> 2.4692925 | K43: =G43*K29 -> 3.6231675 | M43: =G43*M29 -> 4.7770425 | O43: 5136.1284 | Q43: 395.0868
C44: =+C43+1 -> 14 | D44: Subtotal "D" = | I44: =SUM(I39:I43) -> 6.70001365 | K44: =SUM(K39:K43) -> 9.83086115 | M44: =SUM(M39:M43) -> 12.96170865 | O44: 13936.02839 | Q44: 1072.002184
B46: E. | C46: OVERHEAD & PROFIT
C47: =+C44+1 -> 15 | D47: Overhead & Profit | G47: =+'Technician 1'!G47 -> 0 | I47: =(+I29+I36+I44)*$G$47 -> 0 | K47: =(+K29+K36+K44)*$G$47 -> 0 | M47: =(+M29+M36+M44)*$G$47 -> 0
C48: =+C47+1 -> 16 | D48: (B3+C8+D14) | G48: **DO NOT INCLUDE. To be calculated at end of Change Order Summary.
C49: =+C48+1 -> 17
G50: Monthly
B51: F. | C51: Equipment Rates | G51: per employee | I51: Per Hour | O51: =+O19 -> Per Annum | Q51: Per Month (160 hrs)
C52: =+C49+1 -> 18 | D52: Cell Phone | G52: 90 | I52: =+Q52/$Q$20 -> 0.5625 | K52: =+I52 -> 0.5625 | M52: =+K52 -> 0.5625 | O52: =+I52*$O$20 -> 1170 | Q52: =+G52 -> 90
C53: =+C52+1 -> 19 | D53: Inet Offices | G53: =+(60+60)/Q17 -> 5.217391304 | I53: 0.03260869565 | K53: 0.03260869565 | M53: 0.03260869565 | O53: 67.82608696 | Q53: 5.217391304
C54: 20 | D54: Licences & Training | G54: 20 | I54: 0.125 | K54: 0.125 | M54: 0.125 | O54: 260 | Q54: 20
C55: 21 | D55: Tools | G55: 35 | I55: 0.21875 | K55: 0.21875 | M55: 0.21875 | O55: 455 | Q55: 35
C56: 22 | D56: Uniform | G56: 20 | I56: 0.125 | K56: 0.125 | M56: 0.125 | O56: 260 | Q56: 20
C57: 23 | D57: Vehicle | G57: 600 | I57: 3.75 | K57: 3.75 | M57: 3.75 | O57: 7800 | Q57: 600
C58: 24 | D58: Other | G58: 0 | I58: =+G58/$Q$20 -> 0 | K58: 0 | M58: 0 | O58: 0 | Q58: 0
C59: 25 | D59: Subtotal "F" = | I59: =SUM(I52:I58) -> 4.813858696 | K59: =SUM(K52:K58) -> 4.813858696 | M59: =SUM(M52:M58) -> 4.813858696 | O59: 10012.82609 | Q59: =SUM(Q52:Q58) -> 770.2173913
B61: G. | C61: =+C59+1 -> 26 | D61: Bonus | G61: =(I59+I47+I44+I36+I29)*0.6% -> 0.2786266341 | O61: =+G61*$O$20 -> 579.5433989
B63: H. | C63: Total Billing Rate | I63: =+I29+I36+I44+I47+I59+G61 -> 46.71639898 | K63: =K59+K47+K44+K36+K29+G61 -> 65.23224648 | M63: =M59+M47+M44+M36+M29+G61 -> 83.74809398
O65: Hours in a year | Q65: Hours in a month
B66: I. | C66: Davis Bacon | I66: Rate | K66: Fringes | O66: 2080 | Q66: 160
C67: =+C61+1 -> 27 | D67: Inspectors (BFP & Fire Sprinklers) | I67: 33.14 | K67: 15.84
O68: Calcs | Q68: =10/160 -> 0.0625
I69: MULTIPLIER is:
C70: REV: 2016-04-19 | E70: 23:16:00 | I70: =+I63/I21 -> 1.518245011
C73: =+'Technician 1'!C73 -> Rev: 2018-12-31 | E73: =+'Technician 1'!E73 -> 19:30:00
A74: - | B74: - | C74: - | D74: - | E74: - | F74: - | G74: - | H74: - | I74: - | J74: - | K74: - | L74: - | M74: - | N74: -

Sheet Management
D1: =+Inspectors!D1 -> NAME of General Contractor
D2: =+'Technician 1'!D2:L2 -> Street City | Q2: =+Inspectors!Q2 -> Number of employees is a guess
D3: =+'Technician 1'!D3:L3 -> Utah | Q3: =+Inspectors!Q3 -> Bard hires some under-the-table
D4: =+'Technician 1'!D4:L4 -> Phone | Q4: =+Inspectors!Q4 -> # of Employees
A6: -
D7: =+Inspectors!D7 -> Labor Cost per Hour | M7: =+Inspectors!M7 -> **Non-Union
B10: Job: | D10: =+'Technician 1'!D10 -> 0 | K10: Contract #:
B12: Company Name: | E12: =+Inspectors!E12 -> Company | I12: Prepared by: | K12: =+'Technician 1'!K12 -> Compliance Division FSS
B14: Trade: | D14: Division 21 | I14: Rate Effective: | L14: to
B16: Classification: | E16: Manager
B17: (i.e.: Inspector, Manager etc.) | Q17: =+Inspectors!Q17 -> 23
I19: Straight Time | K19: Time & 1/2 | M19: Double Time | O19: Per Annum | Q19: Per month
B20: A. | C20: BASE | O20: =160*13 -> 2080 | P20: hrs | Q20: =160 -> 160
C21: 1 | D21: Base Wage | F21: 18.5 | I21: =+IF(F21>0,F21,0) -> 18.5 | K21: =I21*1.5 -> 27.75 | M21: =I21*2 -> 37 | O21: =+I21*$O$20 -> 38480 | Q21: =+I21*$Q$20 -> 2960
D22: Shift Differential ( if applicable)
D23: 1st Shift | I23: 0 | K23: 0 | M23: 0
D24: 2nd Shift | I24: 0 | K24: 0 | M24: 0
D25: 3rd Shift | I25: 0 | K25: 0 | M25: 0
B27: B. | C27: VACATION & HOLIDAY
C28: =+C21+1 -> 2 | D28: Vacation & Holiday - Add to Base Wage | G28: =+Inspectors!G28+0.03 -> 0.1 | I28: =+G28*I21 -> 1.85 | K28: =I28 -> 1.85 | M28: =I28 -> 1.85 | O28: =+I28*$O$20 -> 3848 | Q28: =+I28*$Q$20 -> 296
C29: =+C28+1 -> 3 | D29: Subtotal of "A1 + B2" = | I29: =I21+I28 -> 20.35 | K29: =K21+K28 -> 29.6 | M29: =M21+M28 -> 38.85 | O29: =+I29*$O$20 -> 42328 | Q29: =+I29*$Q$20 -> 3256
B31: C. | C31: BENEFITS
C32: =+C29+1 -> 4 | D32: Health & Welfare | I32: 1.5 | K32: =I32 -> 1.5 | M32: =I32 -> 1.5
C33: =+C32+1 -> 5 | D33: Sick
C34: =+C33+1 -> 6
C35: =+C34+1 -> 7 | D35: Others (list add'l if applicable) | K35: =I35 -> 0 | M35: =I35 -> 0
C36: =+C35+1 -> 8 | D36: Subtotal of "C" = | I36: =SUM(I32:I35) -> 1.5 | K36: =SUM(K32:K35) -> 1.5 | M36: =SUM(M32:M35) -> 1.5 | O36: =+I36*$O$20 -> 3120 | Q36: =+I36*$Q$20 -> 240
B38: D. | C38: PAYROLL INSURANCE & TAX
C39: =+C36+1 -> 9 | D39: FICA | G39: =+'Technician 1'!G39 -> 0.0765 | I39: =G39*I29 -> 1.556775 | K39: =G39*K29 -> 2.2644 | M39: =G39*M29 -> 2.972025 | O39: =+I39*$O$20 -> 3238.092 | Q39: =+I39*$Q$20 -> 249.084
C40: =+C39+1 -> 10 | D40: FUI | G40: =+'Technician 1'!G40 -> 0.006 | I40: =G40*I29 -> 0.1221 | K40: =G40*K29 -> 0.1776 | M40: =G40*M29 -> 0.2331 | O40: 253.968 | Q40: 19.536
C41: =+C40+1 -> 11 | D41: SUI | G41: =+'Technician 1'!G41 -> 0.006 | I41: =G41*I29 -> 0.1221 | K41: =G41*K29 -> 0.1776 | M41: =G41*M29 -> 0.2331 | O41: 253.968 | Q41: 19.536
C42: =+C41+1 -> 12 | D42: Workers Compensation | G42: =+'Technician 1'!G42 -> 0.04 | I42: =G42*I29 -> 0.814 | K42: =G42*K29 -> 1.184 | M42: =G42*M29 -> 1.554 | O42: 1693.12 | Q42: 130.24
C43: =+C42+1 -> 13 | D43: General Liability Insurance | G43: =+'Technician 1'!G43 -> 0.075 | I43: =G43*I29 -> 1.52625 | K43: =G43*K29 -> 2.22 | M43: =G43*M29 -> 2.91375 | O43: 3174.6 | Q43: 244.2
C44: =+C43+1 -> 14 | D44: Subtotal "D" = | I44: =SUM(I39:I43) -> 4.141225 | K44: =SUM(K39:K43) -> 6.0236 | M44: =SUM(M39:M43) -> 7.905975 | O44: 8613.748 | Q44: 662.596
B46: E. | C46: OVERHEAD & PROFIT
C47: =+C44+1 -> 15 | D47: Overhead & Profit | G47: =+'Technician 1'!G47 -> 0 | I47: =(+I29+I36+I44)*$G$47 -> 0 | K47: =(+K29+K36+K44)*$G$47 -> 0 | M47: =(+M29+M36+M44)*$G$47 -> 0
C48: =+C47+1 -> 16 | D48: (B3+C8+D14) | G48: **DO NOT INCLUDE. To be calculated at end of Change Order Summary.
C49: =+C48+1 -> 17
G50: Monthly
B51: F. | C51: Equipment Rates | G51: per employee | I51: Per Hour | O51: =+O19 -> Per Annum | Q51: Per Month (160 hrs)
C52: =+C49+1 -> 18 | D52: Cell Phone | G52: 90 | I52: =+Q52/$Q$20 -> 0.5625 | K52: =+I52 -> 0.5625 | M52: =+K52 -> 0.5625 | O52: =+I52*$O$20 -> 1170 | Q52: =+G52 -> 90
C53: =+C52+1 -> 19 | D53: Inet Offices | G53: =+(60+60)/Q17 -> 5.217391304 | I53: 0.03260869565 | K53: 0.03260869565 | M53: 0.03260869565 | O53: 67.82608696 | Q53: 5.217391304
C54: 20 | D54: Licences & Training | G54: 25 | I54: 0.15625 | K54: 0.15625 | M54: 0.15625 | O54: 325 | Q54: 25
C55: 21 | D55: Tools | G55: 30 | I55: 0.1875 | K55: 0.1875 | M55: 0.1875 | O55: 390 | Q55: 30
C56: 22 | D56: Uniform | G56: 20 | I56: 0.125 | K56: 0.125 | M56: 0.125 | O56: 260 | Q56: 20
C57: 23 | D57: Vehicle | G57: 600 | I57: 3.75 | K57: 3.75 | M57: 3.75 | O57: 7800 | Q57: 600
C58: 24 | D58: Other | I58: =+IF(G58>0,G58/$Q$20,0) -> 0 | K58: 0 | M58: 0 | O58: 0 | Q58: 0
C59: 25 | D59: Subtotal "F" = | I59: =SUM(I52:I58) -> 4.813858696 | K59: =SUM(K52:K58) -> 4.813858696 | M59: =SUM(M52:M58) -> 4.813858696 | O59: 10012.82609 | Q59: =SUM(Q52:Q58) -> 770.2173913
B61: G. | C61: =+C59+1 -> 26 | D61: Bonus | G61: =(+I29+I36+I44+I47+I59)*0.6% -> 0.1848305022 | O61: =+G61*$O$20 -> 384.4474445
B63: H. | C63: Total Billing Rate | I63: =+I29+I36+I44+I47+I59+G61 -> 30.9899142 | K63: =K59+K47+K44+K36+K29+G61 -> 42.1222892 | M63: =M59+M47+M44+M36+M29+G61 -> 53.2546642
O65: Hours in a year | Q65: Hours in a month
B66: I. | C66: Davis Bacon | I66: Rate | K66: Fringes | O66: 2080 | Q66: 160
C67: =+C61+1 -> 27 | D67: Not at Management Level | I67: 0 | K67: 0
C68: They get ALL full benefits as by definition of Management | O68: Calcs | Q68: =10/160 -> 0.0625
I69: MULTIPLIER is:
I70: =+I63/I21 -> 1.675130497
C73: =+'Technician 1'!C73 -> Rev: 2018-12-31 | E73: =+'Technician 1'!E73 -> 19:30:00
A74: - | B74: - | C74: - | D74: - | E74: - | F74: - | G74: - | H74: - | I74: - | J74: - | K74: - | L74: - | M74: - | N74: -

Sheet Corp
D1: =+Management!D1 -> NAME of General Contractor
D2: =+'Technician 1'!D2:L2 -> Street City
D3: =+'Technician 1'!D3:L3 -> Utah
D4: =+'Technician 1'!D4:L4 -> Phone
A6: -
D7: =+Management!D7 -> Labor Cost per Hour | M7: =+Management!M7 -> **Non-Union
B10: Job: | D10: =+'Technician 1'!D10 -> 0 | K10: Contract #:
B12: Company Name: | E12: =+Management!E12 -> Company | I12: Prepared by: | K12: =+'Technician 1'!K12 -> Compliance Division FSS
B14: Trade: | D14: Division 21 | I14: Rate Effective: | L14: to
B16: Classification: | E16: Experimental
B17: =+Management!B17 -> (i.e.: Inspector, Manager etc.) | K17: FALSE | Q17: =+'Technician 1'!Q17 -> 23
I19: Straight Time | K19: Time & 1/2 | M19: Double Time | O19: Per Annum | Q19: Per month
B20: A. | C20: BASE | O20: =160*13 -> 2080 | Q20: =160 -> 160
C21: 1 | D21: Base Wage | F21: 45 | I21: =IF(F21>0,F21,0) -> 45 | K21: =I21*1.5 -> 67.5 | M21: =I21*2 -> 90 | O21: =+I21*$O$20 -> 93600 | Q21: =+I21*$Q$20 -> 7200
D22: Shift Differential ( if applicable)
D23: 1st Shift | I23: 0 | K23: 0 | M23: 0
D24: 2nd Shift | I24: 0 | K24: 0 | M24: 0
D25: 3rd Shift | I25: 0 | K25: 0 | M25: 0
B27: B. | C27: VACATION & HOLIDAY
C28: =+C21+1 -> 2 | D28: Vacation & Holiday - Add to Base Wage | G28: =+Management!G28+0.1 -> 0.2 | I28: =+I21*G28 -> 9 | K28: =I28 -> 9 | M28: =I28 -> 9
C29: =+C28+1 -> 3 | D29: Subtotal of "A1 + B2" = | I29: =I21+I28 -> 54 | K29: =K21+K28 -> 76.5 | M29: =M21+M28 -> 99 | O29: =+I29*$O$20 -> 112320 | Q29: =+I29*$Q$20 -> 8640
B31: C. | C31: BENEFITS
C32: =+C29+1 -> 4 | D32: Health & Welfare | I32: 2 | K32: =I32 -> 2 | M32: =I32 -> 2
C33: =+C32+1 -> 5 | D33: Sick
C34: =+C33+1 -> 6
C35: =+C34+1 -> 7 | D35: Others (list add'l if applicable) | K35: =I35 -> 0 | M35: =I35 -> 0
C36: =+C35+1 -> 8 | D36: Subtotal of "C" = | I36: =SUM(I32:I35) -> 2 | K36: =SUM(K32:K35) -> 2 | M36: =SUM(M32:M35) -> 2 | O36: =+I36*$O$20 -> 4160 | Q36: =+I36*$Q$20 -> 320
B38: D. | C38: PAYROLL INSURANCE & TAX
C39: =+C36+1 -> 9 | D39: FICA | G39: 0.0765 | I39: =G39*I29 -> 4.131 | K39: =G39*K29 -> 5.85225 | M39: =G39*M29 -> 7.5735 | O39: =+I39*$O$20 -> 8592.48 | Q39: =+I39*$Q$20 -> 660.96
C40: =+C39+1 -> 10 | D40: FUI | G40: 0.006 | I40: =G40*I29 -> 0.324 | K40: =G40*K29 -> 0.459 | M40: =G40*M29 -> 0.594 | O40: 673.92 | Q40: 51.84
C41: =+C40+1 -> 11 | D41: SUI | G41: 0.006 | I41: =G41*I29 -> 0.324 | K41: =G41*K29 -> 0.459 | M41: =G41*M29 -> 0.594 | O41: 673.92 | Q41: 51.84
C42: =+C41+1 -> 12 | D42: Workers Compensation | G42: 0.0145 | I42: =G42*I29 -> 0.783 | K42: =G42*K29 -> 1.10925 | M42: =G42*M29 -> 1.4355 | O42: 1628.64 | Q42: 125.28
C43: =+C42+1 -> 13 | D43: General Liability Insurance | G43: 0.0004 | I43: =G43*I29 -> 0.0216 | K43: =G43*K29 -> 0.0306 | M43: =G43*M29 -> 0.0396 | O43: 44.928 | Q43: 3.456
C44: =+C43+1 -> 14 | D44: Subtotal "D" = | I44: =SUM(I39:I43) -> 5.5836 | K44: =SUM(K39:K43) -> 7.9101 | M44: =SUM(M39:M43) -> 10.2366 | O44: 11613.888 | Q44: 893.376
B46: E. | C46: OVERHEAD & PROFIT
C47: =+C44+1 -> 15 | D47: Overhead & Profit | G47: **DO NOT INCLUDE. To be calculated at end of Change Order Summary.
C48: =+C47+1 -> 16 | D48: (B3+C8+D14)
C49: =+C48+1 -> 17
G50: Monthly
B51: F. | C51: Equipment Rates | G51: per employee | I51: Per Hour | O51: =+O19 -> Per Annum | Q51: Per Month (160 hrs)
C52: =+C47+1 -> 16 | D52: Cell Phone | G52: 90 | I52: =+G52/$Q$20 -> 0.5625 | K52: =+I52 -> 0.5625 | M52: =+K52 -> 0.5625 | O52: =+I52*$O$20 -> 1170 | Q52: =+G52 -> 90
C53: =+C52+1 -> 17 | D53: Inet Offices | G53: =+(60+60)/Q17 -> 5.217391304 | I53: =+G53/$Q$20 -> 0.03260869565 | K53: 0.03260869565 | M53: 0.03260869565 | O53: 67.82608696 | Q53: 5.217391304
C54: 18 | D54: Licences & Training | G54: 100 | I54: 0.625 | K54: 0.625 | M54: 0.625 | O54: 1300 | Q54: 100
C55: 19 | D55: Tools | G55: 35 | I55: 0.21875 | K55: 0.21875 | M55: 0.21875 | O55: 455 | Q55: 35
C56: 20 | D56: Uniform | G56: 20 | I56: 0.125 | K56: 0.125 | M56: 0.125 | O56: 260 | Q56: 20
C57: 21 | D57: Vehicle | G57: 600 | I57: 3.75 | K57: 3.75 | M57: 3.75 | O57: 7800 | Q57: 600
C58: 22 | D58: Other | G58: 0 | I58: 0 | K58: 0 | M58: 0 | O58: 0 | Q58: 0
C59: 21 | D59: Subtotal "F" = | I59: =SUM(I52:I58) -> 5.313858696 | K59: =SUM(K52:K58) -> 5.313858696 | M59: =SUM(M52:M58) -> 5.313858696 | O59: =+I59*$O$20 -> 11052.82609 | Q59: =SUM(Q52:Q58) -> 850.2173913
B61: G. | C61: =+C58+1 -> 23 | D61: Bonus | G61: =(I59+I47+I44+I36+I29)*0.6% -> 0.4013847522 | O61: =+G61*$O$20 -> 834.8802845
B63: H. | C63: Total Billing Rate | I63: =I59+I47+I44+I36+I29+G61 -> 67.29884345 | K63: =K59+K47+K44+K36+K29+G61 -> 92.12534345 | M63: =M59+M47+M44+M36+M29+G61 -> 116.9518434
O65: Hours in a year | Q65: Hours in a month
B66: I. | C66: Davis Bacon | I66: Rate | K66: Fringes | O66: 2080 | Q66: 160
C67: 21 | D67: None at Management Corp Level | I67: 0 | K67: 0
C68: They get ALL full benefits as by definition of Management | O68: Calcs | Q68: =10/160 -> 0.0625
I69: MULTIPLIER is:
I70: =+I63/I21 -> 1.495529854
C73: =+'Technician 1'!C73 -> Rev: 2018-12-31 | E73: =+'Technician 1'!E73 -> 19:30:00
A74: - | B74: - | C74: - | D74: - | E74: - | F74: - | G74: - | H74: - | I74: - | J74: - | K74: - | L74: - | M74: - | N74: -

Sheet Notes
B1: # of | E1: Cost | G1: Total
A2: Annual | B2: Hrs | C2: Day | D2: Wk | E2: Actual | G2: Billable | I2: 2017-11-22 Updated Davis Bacon
A3: Norm | B3: 8 | C3: 5 | D3: 52 | E3: =+B3*C3*D3 -> 2080
A4: Office/Shop Mtg | B4: 2 | C4: 1 | D4: 52 | E4: 104 | F4: =+E4 -> 104
A5: Public Hols | B5: 8 | C5: 5 | D5: 1 | E5: 40 | F5: =+E5 -> 40
A6: Safety Training | B6: 0.3 | C6: 1 | D6: 52 | E6: 15.6 | F6: =+E6 -> 15.6
A7: Sick | B7: 8 | C7: 5 | D7: 2 | E7: 80 | F7: =+E7 -> 80
A8: Training-Trade Shows | B8: 8 | C8: 5 | D8: 1 | E8: 40 | F8: =+E8 -> 40
A9: Communication time | B9: 0.5 | C9: 5 | D9: 52 | E9: 130
A10: Vacation | B10: 8 | C10: 5 | D10: 2 | E10: 80 | F10: =+E10 -> 80
A13: Per Employee | E13: =SUM(E2:E12) -> 2569.6 | F13: =SUM(F2:F12) -> 359.6 | G13: =E3-F13 -> 1720.4
I14: I often start with my estimated costs then add the desired markup
A15: 58000 | B15: Fuel 2018 | I15: One needs to include the costs of:
B16: Wage increase
B17: Auto Insurance | I17: Paid time-off
B18: Reserve Account for New Vehicles | I18: Health, workers comp and other insurances
I19: Retirement and/or union benefits
I20: Training (e.g., initial or basic training, training to stay up-to-speed or to enhance skills in a current position, certifications training, ‘transition’ training, and safety training)
I21: Company equipment and general supplies utilized by individuals, or by groups of employees
I22: If an employee utilizes office or shop space, the cost of their workspace (facilities cost per employee)
I23: Errors, rework, and warranty costs
I24: Supervision and support
I25: Transportation time and costs
I26: Client communication time and costs (time spent communicating with clients while not on site)
I27: Time and cost not assigned to jobs for administration, company meetings, and “no work available”.
H31: If | I31: you don’t have the job or the employee,
H32: then | I32: do you still have the expense?
H34: if | I34: YES
H35: then | I35: Overhead (Fixed)
H36: else
I37: Labor
I38: add 50 hr, 1 hr a week for meetings

Sheet Rate notes
B2: Labour Rates.txt
B3: Mods: 22:28 2017-07-06
B4: Mods: 2017-04-25
C6: 1. Put neither Overhead, nor burden, nor Profit Burden on labor. | F6: FSS
C7: It will not work!
C8: Don't play games with the numbers.
C10: Charge Out' is hourly Rate times | D10: 2.6 | E10: (income) | F10: =+D10 -> 2.6
C11: 'Labor Burden' is | D11: =1.48 -> 1.48 | E11: (an EXPENSE) | F11: =+D11+0.02 -> 1.5
C13: ( just remember: Charge out is INCOME. Burden is EXPENDITURE)
C15: So for a $20/$25 per hr employee:
C16: You would charge work out at:
C17: 20 x 2.6 or: | D17: =20*$D$10 -> 52 | E17: per hour | F17: =20*$F$10 -> 52
C18: 25 x 2.6 or: | D18: =25*$D$10 -> 65 | E18: =+E17 -> per hour | F18: =20*$F$11 -> 30
C19: OR
C20: Better yet:
C21: Labor Burden is:
C22: 20 x 1.48 or: | D22: =20*$D$11 -> 29.6 | E22: =+E17 -> per hour | F22: =20*$F$11 -> 30
C23: 25 x 1.48 or: | D23: =25*$D$11 -> 37 | E23: =+E22 -> per hour | F23: =25*$F$11 -> 37.5
C24: (this would be the number that you put on your estimate sheet)
C26: SO
C27: Total Labor Cost for an 8 hr job for one $20 or $25 per hour employee is
C28: =+D22&" x 8 or " -> 29.6 x 8 or | D28: =+D22*8 -> 236.8 | E28: per day | F28: =+F22*8 -> 240
C29: =+D23&" x 8 or " -> 37 x 8 or | D29: =+D23*8 -> 296 | E29: =+E28 -> per day | F29: =+F23*8 -> 300
C31: And so:
C32: to the above you add the correct markup: | D32: =+$D$11 -> 1.48 | F32: =+D32+0.02 -> 1.5
C33: i.e:
C34: =+D28&" *" -> 236.8 * | D34: =+$D$32 -> 1.48 | E34: =+D28*D34 -> 350.464 | F34: =+F28*F32 -> 360
C35: =+D29&" *" -> 296 * | D35: =+$D$32 -> 1.48 | E35: =+D29*D35 -> 438.08 | F35: =+F29*F32 -> 450
C36: This is the TOTAL price to quote to the Customer/Client.
C37: (as you can see this is NOT an hourly rate!)
C40: Per Hour
C41: Employee Pay: | D41: 20 | E41: 25
C42: Plus Labor Burden: | D42: =+D22 -> 29.6 | E42: =+D23 -> 37
C43: Plus MarkUp: | D43: =SUM(D41:D42) -> 49.6 | E43: 55.5
C46: IN the FSS Costing Shhets, for the Multiplier on the Labour Rate, I use:
C47: 1.50 * 1.75 = | D47: =1.5*1.75 -> 2.625
C48: SO
C49: $20 pay = | D49: =+D41*D47 -> 52.5 | E49: and
C50: $25 pay = | D50: =+E41*D47 -> 65.625
C52: Note:
C53: 2. if you disclose your rate per hour, which you should never do,
C54: you are setting yourself up for a fight near the end of the job when they decide
C55: you are charging too much for your work.
C57: 3. When you put your overhead burden on labor,
C58: your overhead is dependent on every employee working every day.
C59: If someone misses work, the overhead expense is still incurred,
C60: but the opportunity to recover overhead for that day is gone.
C61: Overhead is a 24 hours a day, seven days a week, 52 weeks a year monster.
C62: It doesn’t stop because somebody doesn’t show up for work.
C64: SO ...
C66: 4. Instead use a flat markup; it provides the overhead dollars,
C67: regardless of who shows up for work.
C68: Jobs will get done, you get paid, and
C69: no fights at the end of the job about your labour rate.
C72: Arun
C73: Ref: US bureau of Statistics
C75: Definition:
C76: Burden rate is defined as the total indirect contract costs,
C77: calculated as a percentage of the construction company's direct labor.
C78: In other words, for every dollar of direct labor allocated to a contract,
C79: burden is applied as a percentage of the direct labor.
C80: But before a contactor can accurately calculate burden rate,
C81: all contract costs assumed by the company must be fully accounted for
C82: and factored into the final burden rate equation.
C84: Indirect contract costs that should be part of the final burden rate calculation include:
C85: •Workers' compensation
C86: •General liability and automobile insurances
C87: •Motor vehicle and equipment repairs and maintenance
C88: •Depreciation
C89: •Field communications expenses
C90: •Employee benefits such as health, life, disability, profit sharing, bonuses and 401(k) match
C91: •Payroll taxes
C92: •FICA
C94: The National Labor Relations Act says that employers cannot prevent employees
C95: from discussing wages and working conditions among themselves.
C96: The idea is that employees need to be free to organize,
C97: and preventing them from discussing these topics would prevent them from organizing.
C98: Arun 2014-10-08
B101: Mods: 2017-07-28 21:28
B102: Mods: 2017-07-06 22:28
B103: Mods: 2017-04-25

Sheet DavisBacon
E5: Holidays
E6: a: Vacation Pay:
E7: 8% with 5 or more years based on regular hourly rate for all hours worked
E8: 6% under 5 years based on regular hourly rate for all hours worked.
E10: b: Paid holidays:
E11: New Year's Day | F11: 1
E12: Memorial Day | F12: =++F11+1 -> 2
E13: Independence Day | F13: =++F12+1 -> 3
E14: Labor Day | F14: 4
E15: Veteran's Day | F15: 5
E16: Thanksgiving Day | F16: 6
E17: Friday after Thanksgiving Day | F17: 7
E18: Christmas Day | F18: 8
E24: Note: Executive Order (EO) 13706, Establishing Paid Sick Leave
E25: for Federal Contractors applies to all contracts subject to the
E26: DavisBacon
E27: Act for which the contract is awarded (and any
E28: solicitation was issued) on or after January 1, 2017. If this
E29: contract is covered by the EO,
E30: the contractor must provide employees with:
E31: one (1) hour of paid sick leave for every 30 hours
E32: they work, up to 56 hours of paid sick leave each year.
E33: Employees must be permitted to use paid sick leave for their
E34: own illness, injury or other healthrelated needs, including
E35: preventive care; to assist a family member (or person who is
E36: like family to the employee) who is ill, injured, or has other
E37: healthrelated needs, including preventive care; or for reasons
E38: resulting from, or to assist a family member (or person who is
E39: like family to the employee) who is a victim of, domestic
E40: violence, sexual assault, or stalking.
E42: a: Vacation Pay: 8% with 5 or more years based on regular
E43: hourly rate for all hours worked, 6% under 5 years based on
E44: regular hourly rate for all hours worked. b: Paid
E45: holidays: New Year's Day; Memorial Day; Independence Day;
E46: Labor Day; Veteran's Day; Thanksgiving Day; Friday after
E47: Thanksgiving and Christmas Day
